[Event "2nd Gujarat Open 2019"]
[Site "Ahmedabad, Gujarat"]
[Date "2019.09.23"]
[Round "3.28"]
[White "Shailesh, Dravid"]
[Black "Potawad Anirudhha"]
[Result "1-0"]
[ECO "D34"]
[WhiteElo "2299"]
[BlackElo "1914"]
[Annotator "NA"]
[PlyCount "48"]
[EventDate "2019.09.22"]
[EventCountry "IND"]
[SourceTitle "playchess.com"]
[Source "ChessBase"]
[SourceQuality "1"]
[TimeControl "5400+30"]

1. d4 {[%emt 0:00:00]} Nf6 {[%emt 0:00:28]} 2. c4 {[%emt 0:00:31]} e6 {[%emt 0:00:34]} 3. Nf3 {[%emt 0:00:06]} d5 {[%emt 0:00:50]} 4. Nc3 {[%emt 0:00:46]} Be7 {[%emt 0:01:35]} 5. g3 {[%emt 0:02:09]} c5 {[%emt 0:02:47]} 6. cxd5 {[%emt 0:01:15]} exd5 {[%emt 0:01:24]} 7. Bg2 {[%emt 0:00:08]} h6 {[%emt 0:02:12]} 8. O-O {[%emt 0:01:24]} O-O {[%emt 0:00:14]} 9. dxc5 {[%emt 0:01:44]} Bxc5 {[%emt 0:00:20]} 10. Na4 {[%emt 0:00:40]} Be7 {[%emt 0:06:03]} 11. Be3 {[%emt 0:00:27]} Nc6 {[%emt 0:00:32]} 12. Rc1 {[%emt 0:00:17]} Ne4 {[%emt 0:06:48]} 13. Nd4 {[%emt 0:02:35]} Bd7 {[%emt 0:06:13]} 14. Nc3 {[%emt 0:00:56]} Nxc3 {[%emt 0:03:13]} 15. Rxc3 {[%emt 0:00:19]} Nxd4 {[%emt 0:03:37]} 16. Bxd4 {[%emt 0:00:08]} Bc6 {[%emt 0:02:05]} 17. Qd3 {[%emt 0:01:26]} Qd7 {[%emt 0:04:56]} 18. Rd1 {[%emt 0:03:14]} Rfd8 {[%emt 0:05:36]} 19. Qb1 {[%emt 0:04:27]} b6 {[%emt 0:07:20]} 20. h4 {[%emt 0:06:35]} Rac8 {[%emt 0:02:23]} 21. Kh2 {[%emt 0:00:31]} Qd6 {[%emt 0:02:01]} 22. Qf5 {[%emt 0:03:27]} Bf8 {[%emt 0:09:09]} 23. h5 {[%emt 0:06:24]} Re8 {[%emt 0:06:54]} 24. Rdc1 {[%emt 0:05:37]} Bd7 {[%emt 0:00:54]} 1-0

[Event "2nd Gujarat Open 2019"]
[Site "Ahmedabad, Gujarat"]
[Date "2019.09.23"]
[Round "3.29"]
[White "Arun Rathee"]
[Black "Nikhil Magizhnan"]
[Result "1/2-1/2"]
[ECO "A04"]
[WhiteElo "1959"]
[BlackElo "2251"]
[Annotator "NA"]
[PlyCount "32"]
[EventDate "2019.09.22"]
[EventCountry "IND"]
[SourceTitle "playchess.com"]
[Source "ChessBase"]
[SourceQuality "1"]
[TimeControl "5400+30"]

1. Nf3 {[%emt 0:00:00]} f5 {[%emt 0:00:32]} 2. d3 {[%emt 0:01:27]} Nf6 {[%emt 0:00:26]} 3. e4 {[%emt 0:00:24]} d6 {[%emt 0:00:35]} 4. Nc3 {[%emt 0:00:55]} g6 {[%emt 0:24:39]} 5. exf5 {[%emt 0:16:37]} Bxf5 {[%emt 0:02:11]} 6. d4 {[%emt 0:02:39]} Bg7 {[%emt 0:03:42]} 7. Be2 {[%emt 0:08:49]} O-O {[%emt 0:03:20]} 8. O-O {[%emt 0:00:10]} Kh8 {[%emt 0:01:39]} 9. Bg5 {[%emt 0:07:12]} c6 {[%emt 0:16:07]} 10. Re1 {[%emt 0:06:01]} Qc7 {[%emt 0:02:39]} 11. Bd3 {[%emt 0:04:09]} Bxd3 {[%emt 0:05:04]} 12. Qxd3 {[%emt 0:00:22]} Na6 {[%emt 0:01:06]} 13. a3 {[%emt 0:01:20]} Rae8 {[%emt 0:00:32]} 14. Rad1 {[%emt 0:03:27]} Qd7 {[%emt 0:34:28]} 15. Re2 {[%emt 0:43:58]} Nc7 {[%emt 0:03:35]} 16. Rde1 {[%emt 0:01:21]} Rf7 {[%emt 0:03:18]} 1/2-1/2

[Event "2nd Gujarat Open 2019"]
[Site "Ahmedabad, Gujarat"]
[Date "2019.09.23"]
[Round "3.30"]
[White "Patil, Pratik"]
[Black "Patel Riddhi R"]
[Result "1-0"]
[ECO "B22"]
[WhiteElo "2187"]
[BlackElo "1485"]
[Annotator "NA"]
[PlyCount "46"]
[EventDate "2019.09.22"]
[EventCountry "IND"]
[SourceTitle "playchess.com"]
[Source "ChessBase"]
[SourceQuality "1"]
[TimeControl "5400+30"]

1. e4 {[%emt 0:00:00]} c5 {[%emt 0:00:00]} 2. c3 {[%emt 0:00:00]} d5 {[%emt 0:00:00]} 3. exd5 {[%emt 0:00:00]} Qxd5 {[%emt 0:00:07]} 4. d4 {[%emt 0:00:00]} Nc6 {[%emt 0:00:15]} 5. Nf3 {[%emt 0:00:00]} Nf6 {[%emt 0:00:26]} 6. Be2 {[%emt 0:05:53]} e6 {[%emt 0:00:51]} 7. O-O {[%emt 0:00:33]} cxd4 {[%emt 0:01:55]} 8. cxd4 {[%emt 0:00:05]} Be7 {[%emt 0:00:25]} 9. Nc3 {[%emt 0:00:12]} Qd6 {[%emt 0:04:01]} 10. a3 {[%emt 0:01:17]} O-O {[%emt 0:02:10]} 11. h3 {[%emt 0:01:33]} a6 {[%emt 0:11:30]} 12. Be3 {[%emt 0:00:32]} Nd5 {[%emt 0:03:34]} 13. Nxd5 {[%emt 0:02:54]} Qxd5 {[%emt 0:01:03]} 14. Rc1 {[%emt 0:00:33]} Rd8 {[%emt 0:05:01]} 15. Bc4 {[%emt 0:01:06]} Qd6 {[%emt 0:00:39]} 16. Qe2 {[%emt 0:04:39]} Bf6 {[%emt 0:04:14]} 17. Rfd1 {[%emt 0:01:01]} Ne7 {[%emt 0:09:28]} 18. Ng5 {[%emt 0:03:03]} Bxg5 {[%emt 0:01:56]} 19. Bxg5 {[%emt 0:01:52]} f6 {[%emt 0:04:53]} 20. Bd2 {[%emt 0:05:05]} Nd5 {[%emt 0:08:27]} 21. Re1 {[%emt 0:19:14]} b5 {[%emt 0:06:37]} 22. Bxd5 {[%emt 0:14:40]} Qxd5 {[%emt 0:00:42]} 23. Ba5 {[%emt 0:00:01]} Re8 {[%emt 0:01:46]} 1-0

[Event "2nd Gujarat Open 2019"]
[Site "Ahmedabad, Gujarat"]
[Date "2019.09.23"]
[Round "3.31"]
[White "Kadam Om Manish"]
[Black "Aradhya, Garg"]
[Result "*"]
[ECO "C44"]
[WhiteElo "1930"]
[BlackElo "2157"]
[Annotator "NA"]
[PlyCount "85"]
[EventDate "2019.09.22"]
[EventCountry "IND"]
[SourceTitle "playchess.com"]
[Source "ChessBase"]
[SourceQuality "1"]
[TimeControl "5400+30"]

1. e4 {[%emt 0:00:41]} e5 {[%emt 0:00:00]} 2. Nf3 {[%emt 0:00:08]} Nc6 {[%emt 0:00:00]} 3. g3 {[%emt 0:00:07]} f5 {[%emt 0:05:04]} 4. d4 {[%emt 0:13:58]} fxe4 {[%emt 0:00:20]} 5. Nxe5 {[%emt 0:00:28]} Nf6 {[%emt 0:00:08]} 6. Bg2 {[%emt 0:00:33]} d5 {[%emt 0:00:30]} 7. Nc3 {[%emt 0:10:20]} Bd6 {[%emt 0:03:08]} 8. Bg5 {[%emt 0:08:20]} O-O {[%emt 0:00:54]} 9. Nxd5 {[%emt 0:03:50]} Bxe5 {[%emt 0:01:10]} 10. dxe5 {[%emt 0:08:56]} Qxd5 {[%emt 0:00:56]} 11. Qxd5+ {[%emt 0:00:27]} Nxd5 {[%emt 0:00:09]} 12. Bxe4 {[%emt 0:00:04]} Be6 {[%emt 0:01:02]} 13. O-O-O {[%emt 0:00:45]} Nb6 {[%emt 0:00:20]} 14. f4 {[%emt 0:00:40]} h6 {[%emt 0:00:33]} 15. Bh4 {[%emt 0:00:03]} Bf5 {[%emt 0:05:44]} 16. Bg2 {[%emt 0:02:27]} Rae8 {[%emt 0:05:32]} 17. Rhe1 {[%emt 0:03:01]} Nb4 {[%emt 0:04:46]} 18. a3 {[%emt 0:02:45]} Nxc2 {[%emt 0:01:45]} 19. Re2 {[%emt 0:00:04]} Na1 {[%emt 0:00:43]} 20. Re3 {[%emt 0:00:14]} a5 {[%emt 0:05:34]} 21. Bxb7 {[%emt 0:05:18]} a4 {[%emt 0:01:11]} 22. Be4 {[%emt 0:00:55]} Nb3+ {[%emt 0:01:53]} 23. Kc2 {[%emt 0:02:03]} g5 {[%emt 0:03:24]} 24. Bxf5 {[%emt 0:03:56]} Rxf5 {[%emt 0:00:04]} 25. g4 {[%emt 0:00:46]} Rxf4 {[%emt 0:00:31]} 26. Bg3 {[%emt 0:00:06]} Rxg4 {[%emt 0:03:04]} 27. e6 {[%emt 0:01:11]} Nd4+ {[%emt 0:00:03]} 28. Kb1 {[%emt 0:00:28]} Nf5 {[%emt 0:02:18]} 29. Rc3 {[%emt 0:00:32]} Nxg3 {[%emt 0:00:31]} 30. hxg3 {[%emt 0:00:04]} Rc4 {[%emt 0:00:56]} 31. Re3 {[%emt 0:00:07]} Re7 {[%emt 0:00:15]} 32. Ka2 {[%emt 0:00:49]} Kg7 {[%emt 0:00:26]} 33. Rd2 {[%emt 0:00:07]} Rc6 {[%emt 0:00:54]} 34. Rde2 {[%emt 0:00:06]} Kf6 {[%emt 0:00:02]} 35. Rf2+ {[%emt 0:00:01]} Kg6 {[%emt 0:00:01]} 36. Rfe2 {[%emt 0:00:01]} Rc4 {[%emt 0:01:11]} 37. b3 {[%emt 0:00:07]} axb3+ {[%emt 0:00:11]} 38. Kxb3 {[%emt 0:00:06]} Rg4 {[%emt 0:00:16]} 39. Rc2 {[%emt 0:00:10]} h5 {[%emt 0:00:32]} 40. Rc5 {[%emt 0:35:16]} h4 {[%emt 0:00:13]} 41. gxh4 {[%emt 0:35:32]} gxh4 {[%emt 0:00:07]} 42. Rc2 {[%emt 0:00:20]} Kf5 {[%emt 0:02:09]} 43. Rc5+ {[%emt 0:00:30]} *

[Event "2nd Gujarat Open 2019"]
[Site "Ahmedabad, Gujarat"]
[Date "2019.09.23"]
[Round "3.32"]
[White "Manush Shah"]
[Black "Jain Adi"]
[Result "*"]
[ECO "E11"]
[WhiteElo "2352"]
[BlackElo "1675"]
[Annotator "NA"]
[PlyCount "40"]
[EventDate "2019.09.22"]
[EventCountry "IND"]
[SourceTitle "playchess.com"]
[Source "ChessBase"]
[SourceQuality "1"]
[TimeControl "5400+30"]

1. d4 {[%emt 0:00:17]} Nf6 {[%emt 0:00:00]} 2. Nf3 {[%emt 0:00:03]} e6 {[%emt 0:00:00]} 3. e3 {[%emt 0:00:07]} d5 {[%emt 0:00:00]} 4. c4 {[%emt 0:00:02]} Bb4+ {[%emt 0:00:22]} 5. Nbd2 {[%emt 0:00:30]} O-O {[%emt 1:32:08]} 6. a3 {[%emt 0:00:40]} Bxd2+ {[%emt 0:00:26]} 7. Qxd2 {[%emt 0:01:15]} b6 {[%emt 0:00:44]} 8. b3 {[%emt 0:01:38]} Bb7 {[%emt 0:00:09]} 9. Bb2 {[%emt 0:00:10]} Ne4 {[%emt 0:00:30]} 10. Qc2 {[%emt 0:00:26]} Nd7 {[%emt 0:01:22]} 11. Bd3 {[%emt 0:00:47]} f5 {[%emt 0:02:24]} 12. O-O {[%emt 0:01:44]} Rc8 {[%emt 0:05:09]} 13. Rac1 {[%emt 0:06:45]} c6 {[%emt 0:03:01]} 14. Qe2 {[%emt 0:02:25]} Qe7 {[%emt 0:06:05]} 15. Nd2 {[%emt 0:03:21]} e5 {[%emt 0:11:32]} 16. cxd5 {[%emt 0:03:38]} cxd5 {[%emt 0:01:11]} 17. Nf3 {[%emt 0:01:41]} exd4 {[%emt 0:06:58]} 18. Nxd4 {[%emt 0:02:27]} Ne5 {[%emt 0:10:58]} 19. Rc2 {[%emt 1:11:34]} Rc7 20. Rxc7 {[%emt 0:00:00]} Bc8 {[%emt 0:01:14]} *

[Event "2nd Gujarat Open 2019"]
[Site "Ahmedabad, Gujarat"]
[Date "2019.09.23"]
[Round "3.33"]
[White "Rahul Bharadwaj B"]
[Black "Srija, Seshadri"]
[Result "1/2-1/2"]
[ECO "A07"]
[WhiteElo "1843"]
[BlackElo "2270"]
[Annotator "NA"]
[PlyCount "50"]
[EventDate "2019.09.22"]
[EventCountry "IND"]
[SourceTitle "playchess.com"]
[Source "ChessBase"]
[SourceQuality "1"]
[TimeControl "5400+30"]

1. Nf3 {[%emt 0:00:00]} d5 {[%emt 0:00:00]} 2. g3 {[%emt 0:00:24]} Bg4 {[%emt 0:00:31]} 3. Bg2 {[%emt 0:01:15]} Nd7 {[%emt 0:00:35]} 4. h3 {[%emt 0:00:40]} Bh5 {[%emt 0:01:04]} 5. O-O {[%emt 0:01:39]} c6 {[%emt 0:01:02]} 6. d3 {[%emt 0:01:21]} e5 {[%emt 0:03:25]} 7. e4 {[%emt 0:01:19]} Ngf6 {[%emt 0:03:15]} 8. Qe1 {[%emt 0:02:42]} dxe4 {[%emt 0:03:32]} 9. dxe4 {[%emt 0:00:08]} Bd6 {[%emt 0:00:15]} 10. Nbd2 {[%emt 0:02:53]} O-O {[%emt 0:00:49]} 11. Nc4 {[%emt 0:00:21]} Bc7 {[%emt 0:00:19]} 12. Bg5 {[%emt 0:01:29]} h6 {[%emt 0:02:54]} 13. Bxf6 {[%emt 0:01:45]} Qxf6 {[%emt 0:00:06]} 14. Nh4 {[%emt 0:02:04]} Nc5 {[%emt 0:07:44]} 15. Nf5 {[%emt 0:05:04]} Ne6 {[%emt 0:02:12]} 16. Qb4 {[%emt 0:04:15]} g6 {[%emt 0:19:54]} 17. Nxh6+ {[%emt 0:10:27]} Kg7 {[%emt 0:00:02]} 18. g4 {[%emt 0:00:49]} Kxh6 {[%emt 0:01:25]} 19. gxh5 {[%emt 0:00:06]} gxh5 {[%emt 0:01:57]} 20. Kh1 {[%emt 0:01:30]} Nf4 {[%emt 0:03:32]} 21. Rg1 {[%emt 0:02:21]} Rg8 {[%emt 0:04:12]} 22. Ne3 {[%emt 0:02:09]} Bb6 {[%emt 0:05:18]} 23. Nf5+ {[%emt 0:00:57]} Kh7 {[%emt 0:00:06]} 24. Qe1 {[%emt 0:05:21]} Rg6 {[%emt 0:03:38]} 25. Rd1 {[%emt 0:01:36]} Rag8 {[%emt 0:16:19]} 1/2-1/2

[Event "2nd Gujarat Open 2019"]
[Site "Ahmedabad, Gujarat"]
[Date "2019.09.23"]
[Round "3.34"]
[White "Abu Sufian, Shakil"]
[Black "Shubham, Lakudkar"]
[Result "1-0"]
[ECO "B86"]
[WhiteElo "2255"]
[BlackElo "2023"]
[Annotator "NA"]
[PlyCount "91"]
[EventDate "2019.09.22"]
[EventCountry "IND"]
[SourceTitle "playchess.com"]
[Source "ChessBase"]
[SourceQuality "1"]
[TimeControl "5400+30"]

1. e4 {[%emt 0:00:00]} c5 {[%emt 0:00:00]} 2. Nf3 {[%emt 0:00:00]} d6 {[%emt 0:00:04]} 3. d4 {[%emt 0:00:00]} cxd4 {[%emt 0:00:16]} 4. Nxd4 {[%emt 0:00:00]} Nf6 {[%emt 0:00:22]} 5. Nc3 {[%emt 0:00:00]} a6 {[%emt 0:00:18]} 6. Bc4 {[%emt 0:00:04]} e6 {[%emt 0:05:40]} 7. Bb3 {[%emt 0:00:10]} Nbd7 {[%emt 0:02:08]} 8. Bg5 {[%emt 0:00:22]} Nc5 {[%emt 0:02:39]} 9. Qf3 {[%emt 0:00:34]} Be7 {[%emt 1:23:03]} 10. O-O-O {[%emt 0:00:18]} Qc7 {[%emt 0:00:00]} 11. Rhe1 {[%emt 0:00:36]} O-O {[%emt 0:00:00]} 12. Qg3 {[%emt 0:01:35]} Kh8 {[%emt 0:00:00]} 13. f4 {[%emt 0:00:21]} h6 {[%emt 0:00:00]} 14. Qh4 {[%emt 0:17:31]} Nxb3+ {[%emt 0:00:00]} 15. axb3 {[%emt 0:00:25]} Ng8 {[%emt 0:00:00]} 16. Bxe7 {[%emt 0:01:18]} Nxe7 {[%emt 0:00:00]} 17. g4 {[%emt 0:03:59]} e5 {[%emt 0:00:00]} 18. Nde2 {[%emt 0:08:54]} Kg8 {[%emt 0:00:00]} 19. g5 {[%emt 0:07:13]} hxg5 {[%emt 0:00:00]} 20. Qxg5 {[%emt 0:01:29]} f6 {[%emt 0:00:00]} 21. Qg3 {[%emt 0:01:31]} Kf7 {[%emt 0:00:00]} 22. f5 {[%emt 0:04:26]} Rg8 {[%emt 0:00:00]} 23. Nd5 {[%emt 0:04:12]} Nxd5 {[%emt 0:00:00]} 24. Rxd5 {[%emt 0:00:13]} g6 {[%emt 0:00:00]} 25. Rg1 {[%emt 0:01:12]} b5 {[%emt 0:00:00]} 26. fxg6+ {[%emt 0:03:25]} Ke7 {[%emt 0:00:00]} 27. Qh4 {[%emt 0:11:28]} Be6 {[%emt 0:00:00]} 28. Qh7+ {[%emt 0:00:54]} Kd8 {[%emt 0:00:00]} 29. Rxd6+ {[%emt 0:00:13]} Qxd6 {[%emt 0:00:00]} 30. Rd1 {[%emt 0:00:01]} Qxd1+ {[%emt 0:00:00]} 31. Kxd1 {[%emt 0:00:01]} Ke8 {[%emt 0:00:00]} 32. h4 {[%emt 0:00:46]} Rd8+ {[%emt 0:00:00]} 33. Ke1 {[%emt 0:00:17]} Rd7 {[%emt 0:00:00]} 34. Qh6 {[%emt 0:00:14]} Bg4 {[%emt 0:00:00]} 35. Nc3 {[%emt 0:03:38]} Be6 {[%emt 0:00:54]} 36. Nd5 {[%emt 0:01:05]} Bxd5 {[%emt 0:01:01]} 37. exd5 {[%emt 0:00:05]} Rf8 {[%emt 0:01:34]} 38. h5 {[%emt 0:02:22]} Rg8 {[%emt 0:01:44]} 39. c4 {[%emt 0:00:28]} bxc4 {[%emt 0:01:37]} 40. bxc4 {[%emt 0:00:02]} Rc7 {[%emt 0:00:11]} 41. d6 {[%emt 0:00:48]} Rcg7 {[%emt 0:00:14]} 42. Qd2 {[%emt 0:02:40]} Kd7 {[%emt 0:01:44]} 43. Qd5 {[%emt 0:00:19]} Rb8 {[%emt 0:00:12]} 44. c5 {[%emt 0:00:42]} Rxb2 {[%emt 0:00:14]} 45. c6+ {[%emt 0:00:10]} Kd8 {[%emt 0:00:35]} 46. Qa5+ {[%emt 0:00:22]} 1-0

[Event "2nd Gujarat Open 2019"]
[Site "Ahmedabad, Gujarat"]
[Date "2019.09.23"]
[Round "3.35"]
[White "Garv Gaur"]
[Black "Nayak Rajesh"]
[Result "0-1"]
[ECO "E62"]
[WhiteElo "1801"]
[BlackElo "2227"]
[Annotator "NA"]
[PlyCount "100"]
[EventDate "2019.09.22"]
[EventCountry "IND"]
[SourceTitle "playchess.com"]
[Source "ChessBase"]
[SourceQuality "1"]
[TimeControl "5400+30"]

1. d4 {[%emt 0:00:00]} Nf6 {[%emt 0:06:55]} 2. Nf3 {[%emt 0:00:23]} g6 {[%emt 0:00:31]} 3. c4 {[%emt 0:00:31]} Bg7 {[%emt 0:00:42]} 4. g3 {[%emt 0:00:51]} O-O {[%emt 0:00:33]} 5. Bg2 {[%emt 0:00:20]} d6 {[%emt 0:00:32]} 6. O-O {[%emt 0:00:22]} Nc6 {[%emt 0:01:02]} 7. Nc3 {[%emt 0:00:45]} Bg4 {[%emt 0:00:37]} 8. d5 {[%emt 0:08:02]} Na5 {[%emt 0:06:32]} 9. Qd3 {[%emt 0:03:09]} Nd7 {[%emt 0:13:47]} 10. b3 {[%emt 0:20:02]} c5 {[%emt 0:09:49]} 11. Bb2 {[%emt 0:04:49]} a6 {[%emt 0:03:44]} 12. h3 {[%emt 0:06:33]} Bxf3 {[%emt 0:00:48]} 13. exf3 {[%emt 0:00:45]} Rb8 {[%emt 0:07:50]} 14. Rab1 {[%emt 0:07:37]} b5 {[%emt 0:07:39]} 15. cxb5 {[%emt 0:04:40]} c4 {[%emt 0:12:46]} 16. bxc4 {[%emt 0:04:49]} Ne5 {[%emt 0:01:51]} 17. Qc2 {[%emt 0:05:40]} Nexc4 {[%emt 0:00:56]} 18. Qd3 {[%emt 0:09:50]} axb5 {[%emt 0:02:36]} 19. Nd1 {[%emt 0:02:19]} Nxb2 {[%emt 0:00:49]} 20. Nxb2 {[%emt 0:00:04]} Qd7 {[%emt 0:00:38]} 21. Rfc1 {[%emt 0:02:00]} Rfc8 {[%emt 0:02:24]} 22. Nd1 {[%emt 0:02:28]} Rc5 {[%emt 0:02:18]} 23. Ne3 {[%emt 0:01:46]} Nb7 {[%emt 0:03:06]} 24. Rc2 {[%emt 0:03:04]} Rbc8 {[%emt 0:02:53]} 25. Rxc5 {[%emt 0:01:15]} Nxc5 {[%emt 0:05:47]} 26. Qxb5 {[%emt 0:02:16]} Qxb5 {[%emt 0:00:11]} 27. Rxb5 {[%emt 0:00:06]} Ra8 {[%emt 0:00:10]} 28. f4 {[%emt 0:03:30]} f5 {[%emt 0:03:05]} 29. Rb1 {[%emt 0:03:28]} Rxa2 {[%emt 0:00:28]} 30. Rc1 {[%emt 0:01:06]} Kf7 {[%emt 0:01:34]} 31. Rc2 {[%emt 0:00:36]} Ra1+ {[%emt 0:00:23]} 32. Kh2 {[%emt 0:00:12]} h5 {[%emt 0:00:28]} 33. Rd2 {[%emt 0:01:57]} Bc3 {[%emt 0:01:11]} 34. Rc2 {[%emt 0:00:15]} Bd4 {[%emt 0:00:18]} 35. Rd2 {[%emt 0:00:56]} Bxe3 {[%emt 0:00:18]} 36. fxe3 {[%emt 0:00:01]} Re1 {[%emt 0:00:09]} 37. Bf3 {[%emt 0:01:05]} Rxe3 {[%emt 0:00:14]} 38. Kg2 {[%emt 0:00:02]} h4 {[%emt 0:01:49]} 39. gxh4 {[%emt 0:00:41]} Nd3 {[%emt 0:00:32]} 40. Kg3 {[%emt 0:00:56]} Ne1 {[%emt 0:00:33]} 41. Rf2 {[%emt 0:00:33]} Rxf3+ {[%emt 0:01:24]} 42. Rxf3 {[%emt 0:00:02]} Nxf3 {[%emt 0:00:05]} 43. Kxf3 {[%emt 0:00:06]} e5 {[%emt 0:00:05]} 44. Ke3 {[%emt 0:00:16]} Ke7 {[%emt 0:00:12]} 45. Kf3 {[%emt 0:00:21]} Kf6 {[%emt 0:00:45]} 46. Ke3 {[%emt 0:00:05]} Kg7 {[%emt 0:00:05]} 47. Kf3 {[%emt 0:00:05]} e4+ {[%emt 0:00:20]} 48. Ke3 {[%emt 0:00:05]} Kh6 {[%emt 0:00:13]} 49. Kf2 {[%emt 0:00:09]} Kh5 {[%emt 0:00:17]} 50. Kg3 {[%emt 0:00:05]} e3 {[%emt 0:00:21]} 0-1

[Event "2nd Gujarat Open 2019"]
[Site "Ahmedabad, Gujarat"]
[Date "2019.09.23"]
[Round "3.36"]
[White "Deshmukh, Anup"]
[Black "Sreekar J S S"]
[Result "1-0"]
[ECO "A29"]
[WhiteElo "2193"]
[BlackElo "1818"]
[Annotator "NA"]
[PlyCount "143"]
[EventDate "2019.09.22"]
[EventCountry "IND"]
[SourceTitle "playchess.com"]
[Source "ChessBase"]
[SourceQuality "1"]
[TimeControl "5400+30"]

1. c4 {[%emt 0:00:00]} e5 {[%emt 0:00:00]} 2. Nc3 {[%emt 0:00:10]} Nf6 {[%emt 0:02:13]} 3. Nf3 {[%emt 0:00:11]} Nc6 {[%emt 0:00:14]} 4. g3 {[%emt 0:00:02]} d5 {[%emt 0:00:15]} 5. cxd5 {[%emt 0:00:08]} Nxd5 {[%emt 0:00:10]} 6. Bg2 {[%emt 0:00:11]} Nb6 {[%emt 0:00:23]} 7. O-O {[%emt 0:00:11]} Be7 {[%emt 0:00:13]} 8. d3 {[%emt 0:00:14]} O-O {[%emt 0:00:53]} 9. Be3 {[%emt 0:01:00]} Be6 {[%emt 0:09:21]} 10. a3 {[%emt 0:00:23]} Nd5 {[%emt 0:15:20]} 11. Nxd5 {[%emt 0:02:48]} Bxd5 {[%emt 0:00:17]} 12. Qa4 {[%emt 0:00:30]} Re8 {[%emt 0:00:30]} 13. Rac1 {[%emt 0:00:30]} Bf8 {[%emt 0:00:30]} 14. Rfd1 {[%emt 0:00:30]} Qd7 {[%emt 0:00:30]} 15. Bc5 {[%emt 0:00:30]} Rad8 {[%emt 0:00:30]} 16. Bxf8 {[%emt 0:00:30]} Rxf8 {[%emt 0:00:30]} 17. e4 {[%emt 0:15:00]} Be6 {[%emt 0:26:21]} 18. Qb5 {[%emt 0:00:43]} Bg4 {[%emt 0:07:38]} 19. Qxb7 {[%emt 0:01:08]} Bxf3 {[%emt 0:01:00]} 20. Bxf3 {[%emt 0:00:03]} Nd4 {[%emt 0:00:13]} 21. Kg2 {[%emt 0:00:30]} c6 {[%emt 0:00:30]} 22. Qxd7 {[%emt 0:00:30]} Rxd7 {[%emt 0:00:30]} 23. Rc5 {[%emt 0:00:30]} f6 {[%emt 0:00:30]} 24. Bg4 {[%emt 0:00:30]} Rb7 {[%emt 0:00:30]} 25. b4 {[%emt 0:00:30]} g6 {[%emt 0:00:30]} 26. Rdc1 {[%emt 0:00:30]} Kg7 {[%emt 0:00:30]} 27. Bd1 {[%emt 0:00:30]} Rb6 {[%emt 0:00:30]} 28. f4 {[%emt 0:00:30]} Re8 {[%emt 0:00:30]} 29. fxe5 {[%emt 0:00:30]} fxe5 {[%emt 0:00:30]} 30. Ra5 {[%emt 0:00:30]} Re7 {[%emt 0:00:30]} 31. h4 {[%emt 0:00:30]} Rb5 {[%emt 0:00:30]} 32. Ra6 {[%emt 0:00:30]} Rb6 {[%emt 0:00:30]} 33. Ra4 {[%emt 0:00:30]} Rc7 {[%emt 0:00:30]} 34. Ra5 {[%emt 0:00:30]} Rb5 {[%emt 0:00:30]} 35. Rc5 {[%emt 0:00:30]} Rxa5 {[%emt 0:00:30]} 36. Rxa5 {[%emt 0:00:30]} Kf6 {[%emt 0:27:02]} 37. Kf2 {[%emt 0:25:39]} Ke6 {[%emt 0:01:00]} 38. Ke3 {[%emt 0:00:49]} Kd6 {[%emt 0:00:11]} 39. Ra6 {[%emt 0:02:02]} Ke7 {[%emt 0:05:14]} 40. Ba4 {[%emt 0:01:23]} Kd7 {[%emt 0:00:31]} 41. g4 {[%emt 0:01:34]} h6 {[%emt 0:01:14]} 42. g5 {[%emt 0:01:59]} hxg5 {[%emt 0:00:08]} 43. hxg5 {[%emt 0:00:08]} Ke7 {[%emt 0:00:53]} 44. Bd1 {[%emt 0:02:43]} Kd6 {[%emt 0:00:31]} 45. Ba4 {[%emt 0:00:47]} Ke7 {[%emt 0:00:13]} 46. Kd2 {[%emt 0:01:30]} Nf3+ {[%emt 0:00:37]} 47. Ke3 {[%emt 0:01:11]} Nd4 {[%emt 0:00:07]} 48. Kd2 {[%emt 0:01:25]} Nf3+ {[%emt 0:00:07]} 49. Kc3 {[%emt 0:01:17]} Nd4 {[%emt 0:01:10]} 50. Kc4 {[%emt 0:00:54]} Kd7 {[%emt 0:00:17]} 51. Bd1 {[%emt 0:03:56]} Ke7 {[%emt 0:00:39]} 52. a4 {[%emt 0:00:56]} Kd6 {[%emt 0:00:44]} 53. b5 {[%emt 0:00:31]} Ke7 {[%emt 0:00:27]} 54. b6 {[%emt 0:05:24]} axb6 {[%emt 0:00:15]} 55. Rxb6 {[%emt 0:00:02]} Kd6 {[%emt 0:00:41]} 56. Rb8 {[%emt 0:00:13]} Rg7 {[%emt 0:00:30]} 57. Rd8+ {[%emt 0:04:35]} Ke7 {[%emt 0:00:14]} 58. Ra8 {[%emt 0:00:30]} Kd6 {[%emt 0:00:10]} 59. a5 {[%emt 0:00:29]} Nb5 {[%emt 0:01:19]} 60. Rf8 {[%emt 0:02:40]} Kc7 {[%emt 0:00:37]} 61. Rf6 {[%emt 0:01:31]} Nd4 {[%emt 0:00:29]} 62. Kc5 {[%emt 0:24:10]} Re7 {[%emt 0:00:33]} 63. Bg4 {[%emt 0:00:00]} Nb3+ {[%emt 0:00:29]} 64. Kb4 {[%emt 0:00:00]} Nd4 {[%emt 0:00:27]} 65. Rxg6 {[%emt 0:00:00]} Kb7 {[%emt 0:00:18]} 66. Rg8 {[%emt 0:00:00]} Kc7 {[%emt 0:00:44]} 67. g6 {[%emt 0:00:00]} Kd6 {[%emt 0:00:18]} 68. a6 {[%emt 0:03:00]} Ra7 {[%emt 0:00:34]} 69. Rd8+ {[%emt 0:00:00]} Ke7 {[%emt 0:00:31]} 70. g7 {[%emt 0:00:00]} c5+ {[%emt 0:00:43]} 71. Kc4 {[%emt 0:00:00]} Kxd8 {[%emt 0:00:28]} 72. g8=Q+ {[%emt 0:00:00]} 1-0